bitfinex-derivatives/quotes_ETHF0:USTF0_20250816
["timestamp","ask_amount","ask_price","bid_price","bid_amount"]
[1755338178027,0.83488219,4438.4,4438.3,22.8925]
[1755338178325,0.5755,4438.4,4438.3,22.8925]
[1755338178925,0.5755,4438.4,4438.3,24.91530777]
[1755338180235,0.574,4438.7,4438.3,24.24930777]
[1755338180425,0.25932473,4438.6,4438.5,0.4753]
[1755338180622,0.25932473,4438.6,4438.5,1.1516]
[1755338180826,0.64892473,4438.6,4438.5,1.1516]
[1755338181030,1.59182473,4438.6,4438.5,1.1516]
[1755338181231,1.84882473,4438.6,4438.5,1.1516]
[1755338181430,0.25932473,4438.6,4438.5,0.9006]
[1755338181632,0.83332473,4438.6,4438.5,1.1516]
[1755338182531,0.83332767,4438.6,4438.5,1.1516]
[1755338184427,1.84882767,4438.6,4438.5,0.3954]
[1755338184731,1.84882767,4438.6,4438.5,0.8229]
[1755338185231,1.84882767,4438.6,4438.5,0.8528]
[1755338186630,1.84882767,4438.6,4438.5,0.8229]
[1755338187134,1.84882767,4438.6,4438.5,0.9006]
[1755338187330,1.84882767,4438.6,4438.5,22.6346]
[1755338188937,1.84882767,4438.6,4438.5,22.8856]
[1755338189131,1.5895,4438.6,4438.5,22.8856]
[1755338190431,1.2206,4438.6,4438.5,22.8856]
[1755338190633,0.7466,4439.2,4439.1,0.5052]
[1755338190838,1.37480655,4439.2,4439.1,22.8766]
[1755338191238,0.35930655,4439.2,4439.1,22.8766]
[1755338191433,0.1,4439.2,4439.1,22.8766]
[1755338192035,0.1,4439.2,4439.0,0.45024]
[1755338192239,0.1,4439.2,4439.1,22.8746]
[1755338193038,0.1,4439.2,4439.1,25.65389536]
[1755338193242,1.6895,4439.2,4439.1,2.77929536]
[1755338193440,1.2206,4439.1,4439.0,0.7241]
[1755338193635,1.5895,4439.1,4439.0,22.8716]
[1755338194041,1.5895,4439.1,4439.0,22.6206]
[1755338194238,1.5895,4439.1,4439.0,22.1475]
[1755338194741,1.5895,4439.1,4439.0,22.5429]
[1755338195147,0.1,4439.2,4439.0,22.6206]
[1755338195344,0.1,4439.2,4439.1,1.1516]
[1755338196240,0.1,4439.2,4438.9,5.22822751]
[1755338196445,1.5895,4439.0,4438.7,2.02042751]
[1755338196646,0.6466,4438.8,4438.7,21.714]
[1755338196846,1.5895,4438.8,4438.7,21.714]
[1755338198144,1.5895,4438.8,4438.5,21.713]
[1755338198342,1.2206,4438.7,4438.6,0.8229]
[1755338199041,1.5895,4438.7,4438.6,0.8229]
[1755338201446,1.5895,4438.7,4438.6,0.8528]
[1755338201947,1.5895,4438.7,4438.6,0.9006]
[1755338202146,1.5895,4438.7,4438.6,0.8707]
[1755338202851,1.5895,4438.7,4438.6,0.8229]
[1755338203148,1.5895,4438.7,4438.6,0.4275]
[1755338204045,1.5895,4438.7,4438.6,0.8229]
[1755338209544,1.5895,4438.7,4438.6,22.5199]
[1755338212851,0.9303,4438.6,4438.4,2.02042751]
[1755338213154,0.618,4438.5,4438.1,46.02822751]
[1755338213358,0.618,4438.2,4438.1,44.3845]
[1755338213550,1.5483,4438.2,4438.1,25.2745]
[1755338213850,1.5483,4438.2,4438.1,22.0667]
[1755338214457,1.5483,4437.9,4437.6,5.60492751]
[1755338214659,1.5483,4437.8,4437.7,22.1056]
[1755338215161,1.5483,4437.8,4437.7,22.5007]
[1755338215552,1.5483,4437.8,4437.7,22.4823]
[1755338215850,1.5483,4437.8,4437.7,22.4803]
[1755338216555,1.5483,4437.8,4437.7,22.5282]
[1755338218550,1.5483,4437.8,4437.7,0.7933]
[1755338218751,1.5483,4437.8,4437.7,21.684]
[1755338219355,1.5483,4437.8,4437.7,22.0607]
[1755338219657,0.1598,4436.2,4436.1,2.87817395]
[1755338219856,0.1598,4436.2,4434.5,3.2078]
[1755338219857,36.1892137,4436.2,4434.9,0.2438]
[1755338220058,3.2078,4435.5,4434.9,1.1792]
[1755338220255,0.13738538,4435.4,4434.9,1.001]
[1755338220454,3.61700318,4435.4,4435.1,0.3111]
[1755338220760,0.40920318,4435.3,4435.2,0.2438]
[1755338221253,0.40920318,4435.3,4435.0,0.6878]
[1755338221254,0.40920318,4435.3,4435.0,0.2438]
[1755338221553,0.40920318,4435.3,4434.0,44.0078]
[1755338221554,0.40845479,4435.2,4434.5,0.2438]
[1755338221758,3.2078,4434.6,4434.5,0.2438]
[1755338221959,3.40720718,4434.6,4433.9,0.8681]
[1755338222154,3.2078,4434.6,4434.0,0.6243]
[1755338222455,3.2078,4434.6,4434.2,0.3111]
[1755338222853,3.2078,4434.6,4434.4,0.2438]
[1755338223452,3.2078,4434.6,4434.3,0.3111]
[1755338223658,3.2078,4434.6,4434.5,1.5559]
[1755338226759,3.2078,4434.6,4434.5,0.6604]
[1755338226960,3.2078,4434.6,4434.5,1.5559]
[1755338227156,3.2078,4434.6,4433.6,40.8]
[1755338227360,3.2078,4434.1,4433.8,1.3121]
[1755338227658,3.2078,4434.1,4433.1,0.2438]
[1755338227864,3.2078,4433.6,4433.5,1.5559]
[1755338228261,3.2078,4433.6,4433.5,0.2438]
[1755338228761,3.2078,4433.6,4433.5,0.7241]
[1755338228966,3.2078,4433.6,4433.0,0.3111]
[1755338229170,3.2078,4433.1,4433.0,1.1792]
[1755338229361,3.2078,4433.1,4433.0,1.5559]
[1755338232170,3.2078,4433.1,4433.0,1.1792]
[1755338232870,3.2078,4433.1,4433.0,0.2438]
[1755338233971,3.2078,4433.1,4433.0,0.5549]
[1755338234376,3.2078,4433.1,4433.0,0.413]
[1755338234677,3.2078,4433.1,4432.5,0.8681]
[1755338234866,3.2078,4432.6,4432.5,0.8681]
[1755338235066,3.2078,4432.6,4432.5,1.5559]
[1755338235269,3.69484226,4432.6,4432.1,0.4803]
[1755338235470,3.2078,4432.6,4432.2,0.2438]
[1755338235772,3.2078,4432.6,4431.9,0.6241]
[1755338235978,3.2078,4432.0,4431.9,1.3121]
[1755338236382,3.2078,4432.0,4431.9,1.1792]
[1755338237077,3.2078,4432.0,4431.9,1.5559]
[1755338237579,3.2078,4432.5,4432.4,0.6243]
[1755338237786,3.69472365,4432.5,4432.4,1.5559]
[1755338238489,3.82492365,4432.5,4432.4,1.1792]
[1755338238788,3.82492365,4432.5,4432.4,0.5549]
[1755338239081,3.82500455,4432.5,4432.4,1.1841]
[1755338239291,3.82500455,4432.5,4432.4,0.2438]
[1755338239482,4.49274371,4432.5,4432.4,0.2438]
[1755338239682,4.49384371,4432.5,4432.4,0.2438]
[1755338240198,4.49384371,4432.5,4432.1,0.2424]
[1755338240199,4.44334371,4432.5,4432.1,0.2424]
[1755338240388,0.1313,4432.2,4432.1,0.2424]
[1755338240588,1.07458881,4432.2,4432.1,0.2424]
[1755338240900,1.28494371,4432.2,4432.1,0.2424]
[1755338241097,1.28604371,4432.2,4432.1,0.2424]
[1755338241591,0.0808,4431.8,4431.7,0.6592]
[1755338241800,4.49274371,4431.8,4431.7,0.6592]
[1755338241995,4.49274371,4431.8,4431.7,0.2945]
[1755338242190,0.0505,4431.7,4431.2,0.2945]
[1755338242390,3.2903,4431.3,4431.2,1.2884]
[1755338242594,4.44504371,4431.3,4431.2,1.2884]
[1755338242901,0.1302,4431.2,4431.1,0.10155377]
[1755338243097,2.47659407,4431.2,4431.1,0.10155377]
[1755338243396,0.0494,4431.1,4431.0,0.8716]
[1755338243695,1.28494371,4431.1,4431.0,1.5308]
[1755338243900,1.15474371,4431.1,4430.0,3.4502]
[1755338244100,3.2078,4430.8,4430.7,1.5308]
[1755338244294,4.36254371,4430.8,4430.7,1.5308]
[1755338244992,1.15474371,4430.8,4430.7,1.5308]
[1755338245396,4.49274371,4430.8,4430.7,1.5308]
[1755338245596,4.36424371,4430.8,4430.7,1.5308]
[1755338245797,4.36604371,4430.8,4430.7,1.5308]
[1755338246000,4.36254371,4430.8,4430.7,1.5308]
[1755338246200,0.49174371,4430.8,4430.7,1.5308]
[1755338246395,3.2078,4431.3,4431.1,0.6292]
[1755338246595,3.2078,4431.3,4431.2,1.5308]
[1755338247400,2.5919,4431.3,4431.2,4.5308]
[1755338247600,0.1,4432.2,4432.1,1.5308]
[1755338247994,0.7811,4432.2,4432.1,1.2884]
[1755338248198,1.6773,4432.2,4432.1,1.2884]
[1755338248400,1.6773,4432.2,4432.1,1.123]
[1755338248605,1.6773,4432.2,4432.1,1.2884]
[1755338249198,4.8851,4432.2,4432.1,1.2884]
[1755338250197,4.6312,4432.2,4431.3,41.0945]
[1755338250396,2.02831,4431.4,4431.2,3.2078]
[1755338250597,1.6672,4430.5,4430.4,0.7583]
[1755338250792,2.0284,4430.5,4430.4,1.2884]
[1755338251401,3.2078,4430.6,4430.4,1.5308]
[1755338251601,1.59601958,4431.1,4430.9,0.6292]
[1755338251794,1.59601958,4431.1,4431.0,1.5308]
[1755338252002,1.84991958,4431.1,4431.0,1.5308]
[1755338252196,0.2539,4431.1,4431.0,1.5308]
[1755338252598,0.4218,4431.1,4431.0,1.5308]
[1755338252994,1.2721,4431.1,4431.0,1.2884]
[1755338253199,1.5773,4431.1,4431.0,0.4638]
[1755338253402,0.6811,4430.5,4430.4,1.2884]
[1755338253704,0.2539,4430.5,4430.4,1.5308]
[1755338253904,0.4218,4430.5,4430.4,1.2884]
[1755338254102,1.5773,4430.5,4430.4,1.2884]
[1755338254797,0.2539,4429.9,4429.8,1.5308]
[1755338254996,1.1976737,4430.2,4429.8,0.6292]
[1755338255203,0.2539,4430.1,4430.0,1.5308]
[1755338255704,1.19804472,4430.5,4430.1,0.6292]
[1755338256002,4.7851,4431.2,4431.1,1.0604]
[1755338256311,4.7851,4431.2,4431.1,0.9496]
[1755338256807,4.7851,4431.2,4430.8,0.1108]
[1755338256997,0.1679,4431.1,4431.0,0.1654]
[1755338257197,0.657,4431.1,4431.0,0.9496]
[1755338257598,1.5773,4431.1,4431.0,0.9496]
[1755338257901,1.5773,4430.7,4430.6,0.7724]
[1755338258101,0.657,4430.7,4430.3,3.2078]
[1755338258401,1.5773,4430.4,4430.3,4.2682]
[1755338258703,2.02184949,4430.4,4430.3,4.5106]
[1755338259109,0.80572439,4430.4,4430.3,4.5106]
[1755338260006,1.25683439,4430.4,4430.3,4.5106]
[1755338260201,0.80572439,4430.4,4430.3,4.5106]
[1755338260403,0.80572439,4430.4,4430.3,3.5725]
[1755338260602,0.80572439,4430.4,4430.3,4.5106]
[1755338261605,0.45117,4429.8,4429.7,3.7497]
[1755338261911,2.04579439,4429.8,4429.7,4.6878]
[1755338262105,2.0458806,4429.8,4429.7,45.4878]
[1755338262305,1.2569806,4429.8,4429.7,45.4878]
[1755338262507,2.8342806,4429.8,4429.7,4.1574]
[1755338262706,2.8342806,4429.8,4429.7,4.4454]
[1755338262908,1.2569806,4429.8,4429.7,4.6878]
[1755338263203,2.8342806,4429.8,4429.7,4.4454]
[1755338263609,1.2569806,4429.8,4429.7,4.6878]
[1755338264509,0.8058106,4429.8,4429.7,4.6878]
[1755338264705,0.8058106,4429.8,4429.7,5.13898]
[1755338265013,0.6664,4429.7,4428.8,0.4894]
[1755338265310,0.19668893,4429.6,4429.3,0.2424]
[1755338265512,0.657,4429.4,4429.3,0.6501]
[1755338265706,1.03147381,4429.4,4429.3,1.3391]
[1755338265907,0.80167381,4429.4,4429.3,1.3391]
[1755338267106,0.45117,4429.8,4429.3,4.79031]
[1755338267305,0.45117,4429.8,4429.7,1.3391]
[1755338267906,0.98617,4429.8,4429.7,1.3391]
[1755338268108,1.41337,4429.8,4429.7,1.3391]
[1755338268308,2.02847,4429.8,4429.7,1.2144]
[1755338268915,1.41337,4429.8,4429.7,1.3647]
[1755338269210,2.72445424,4430.9,4429.7,1.3647]
[1755338269211,0.45112,4430.3,4430.1,0.9112]
[1755338269418,0.6162,4430.7,4430.4,0.6511]
[1755338269605,3.2078,4430.9,4429.6,24.8758]
[1755338269606,4.31326,4430.9,4430.8,0.6511]
[1755338269909,3.65886,4430.9,4430.8,1.2872]
[1755338270108,4.00206,4430.9,4430.8,1.4375]
[1755338270319,4.40556,4430.9,4430.8,1.4375]
[1755338271012,4.65646,4430.9,4430.8,1.4375]
[1755338271210,3.65886,4430.9,4430.8,1.4375]
[1755338271816,0.6162,4431.4,4430.9,0.6361]
[1755338272116,0.6544,4430.7,4430.6,1.0491]
[1755338272321,1.3583,4430.7,4430.6,1.4375]
[1755338272616,0.45106,4430.9,4430.8,0.8014]
[1755338272812,2.06486,4430.9,4430.8,1.4375]
[1755338273015,2.06486,4430.9,4430.8,1.2872]
[1755338273315,2.06486,4430.9,4430.8,0.413]
[1755338273517,1.1055,4430.5,4430.4,1.1994]
[1755338273714,2.0649,4430.5,4430.4,1.1994]
[1755338273912,2.0649,4430.5,4430.4,0.413]
[1755338274113,2.0649,4430.5,4430.4,0.1606]
[1755338274516,1.10553,4430.2,4430.1,4.2569]
[1755338274717,2.06493,4430.2,4430.1,1.0491]
[1755338275917,0.45113,4430.2,4430.1,1.2872]
[1755338276231,0.79432,4430.3,4430.2,1.4375]
[1755338276522,1.80942,4430.3,4430.2,1.4375]
[1755338276824,2.06492,4430.3,4430.2,1.4375]
[1755338277219,2.06492,4430.3,4430.2,1.0491]
[1755338277423,0.45112,4430.3,4430.2,1.4375]
[1755338277818,0.79432,4430.3,4430.2,1.4375]
[1755338278023,1.02592,4430.3,4430.2,1.4375]
[1755338278325,1.19782,4430.3,4430.2,1.4375]
[1755338278523,1.80942,4430.3,4430.2,1.4375]
[1755338278822,2.06492,4430.3,4430.2,1.0491]
[1755338279326,2.06492,4430.3,4430.2,1.2872]
[1755338279520,2.06492,4430.3,4430.2,1.4375]
[1755338279826,0.9594,4430.3,4429.7,40.8]
[1755338280022,0.4035,4429.9,4429.8,0.6588]
[1755338280227,0.45116,4429.9,4429.8,1.4375]
[1755338280425,0.45112,4430.3,4430.2,1.4375]
[1755338280617,0.7039,4430.9,4430.8,0.2381]
[1755338280926,0.62677609,4430.9,4430.8,1.4375]
[1755338281228,0.45106,4430.9,4430.8,1.4375]
[1755338281432,0.3432,4431.4,4430.9,0.4104]
[1755338281627,3.65882,4431.3,4431.2,1.4375]
[1755338281923,4.1777854,4431.3,4431.2,1.4375]
[1755338282124,4.8321854,4431.3,4431.2,1.4375]
[1755338282329,5.4483854,4431.3,4431.2,1.4375]
[1755338282825,3.7826,4431.3,4431.2,1.4375]
[1755338283031,3.2078,4431.3,4431.2,1.4375]
[1755338283227,0.45101,4431.4,4431.3,0.4207]
[1755338283425,0.79421,4431.4,4431.3,1.4375]
[1755338283929,3.824,4431.9,4430.7,3.2078]
[1755338283930,0.1719,4431.5,4431.4,0.3987]
[1755338284133,0.45098,4431.7,4431.6,0.8014]
[1755338284325,1.44857,4431.8,4431.7,0.8014]
[1755338284524,2.06477,4431.8,4431.7,1.4375]
[1755338284926,3.2078,4431.9,4431.7,1.4375]
[1755338285129,0.1,4432.2,4432.1,0.6511]
[1755338285325,0.1,4432.2,4432.1,1.4375]
[1755338287033,0.4432,4432.2,4432.1,1.4375]
[1755338287326,0.1,4432.2,4432.1,1.4375]
[1755338287531,1.7138,4432.2,4432.1,1.4375]
[1755338287726,0.45098,4431.7,4431.6,41.4361]
[1755338287932,0.5748,4431.7,4431.6,63.2414]
[1755338288330,0.7467,4431.7,4431.6,63.2414]
[1755338288734,1.3583,4431.7,4431.6,63.2414]
[1755338288934,2.06479,4431.6,4431.5,0.1606]
[1755338289434,2.06479,4431.6,4431.5,41.589]
[1755338289732,2.06479,4431.6,4431.5,41.8491]
[1755338289934,2.06479,4431.6,4431.5,1.0491]
[1755338290834,2.06479,4431.6,4431.5,1.2872]
[1755338291238,2.06479,4431.6,4431.3,40.8]
[1755338291431,0.9594,4431.5,4431.3,41.4361]
[1755338291733,3.65876,4431.9,4431.6,0.6511]
[1755338291934,3.65876,4431.9,4431.4,0.451]
[1755338291935,3.65876,4431.9,4431.8,1.0271]
[1755338292240,0.45095,4432.0,4431.9,1.4375]
[1755338292537,1.44855,4432.0,4431.9,1.2872]
[1755338292925,0.6544,4431.7,4430.5,2.82152949]
[1755338293126,3.2078,4431.0,4428.4,0.2601]
[1755338293333,3.2078,4429.8,4428.4,0.2601]
[1755338293528,3.2078,4429.1,4428.5,40.8]
[1755338293733,3.2078,4428.6,4428.5,41.0601]
[1755338293934,3.2078,4428.6,4428.5,41.4361]
[1755338294128,3.2078,4428.6,4428.5,0.2601]
[1755338295033,3.2078,4428.6,4428.5,0.5902]
[1755338295837,3.5546013,4428.6,4428.5,0.5902]
[1755338296243,3.5546013,4428.6,4427.6,0.2601]
[1755338296438,0.3468013,4428.5,4427.7,0.3301]
[1755338296740,0.3468013,4428.4,4427.9,0.5902]
[1755338297032,0.3468013,4428.3,4427.4,0.7815]
[1755338297338,0.3468013,4428.2,4428.1,0.9889]
[1755338298041,3.2078,4428.6,4428.2,0.2601]
[1755338298336,32.499,4429.9,4425.2,0.2601]
[1755338298337,3.2078,4428.1,4425.2,0.2601]
[1755338298539,3.2078,4426.2,4425.4,0.2564]
[1755338298740,3.2078,4426.2,4425.6,0.6329]
[1755338299042,3.245,4426.2,4425.6,0.608]
[1755338299334,3.245,4426.2,4425.6,0.7281]
[1755338299535,3.2078,4426.2,4425.8,0.2564]
[1755338299740,0.0372,4426.0,4425.7,0.9845]
[1755338299934,0.0372,4426.0,4425.7,0.3765]
[1755338300136,0.0372,4425.9,4425.8,0.2564]
[1755338300341,0.0372,4425.9,4425.3,0.3516]
[1755338300544,3.2078,4425.6,4425.3,0.2564]
[1755338300742,0.0372,4425.5,4425.4,0.608]
[1755338301141,3.2078,4425.6,4425.4,0.9845]
[1755338301337,3.2078,4425.6,4425.5,0.6329]
[1755338301544,3.2078,4425.6,4425.5,0.608]
[1755338301841,3.245,4425.6,4425.5,0.9845]
[1755338302147,0.0372,4425.5,4424.6,3.2078]
[1755338302440,0.0372,4424.7,4424.5,0.3765]
[1755338302642,0.0372,4424.7,4424.6,0.3516]
[1755338302846,3.2078,4424.9,4424.2,0.45174]
[1755338303146,3.2078,4424.9,4424.5,0.7281]
[1755338303345,3.2078,4424.9,4424.6,0.6329]
[1755338303549,3.2078,4424.9,4424.8,0.9845]
[1755338303848,3.245,4424.9,4424.8,0.2564]
[1755338304235,0.0372,4424.8,4424.3,0.2564]
[1755338304434,0.0372,4424.7,4424.6,0.9845]
[1755338305734,0.0372,4424.7,4424.3,0.45173]
[1755338305735,0.0372,4424.6,4424.1,0.10171445]
[1755338305940,0.0372,4424.1,4423.3,0.2564]
[1755338306244,0.30877388,4424.0,4423.4,0.3516]
[1755338306446,0.34597388,4423.9,4423.4,0.2564]
[1755338306748,0.30828002,4423.8,4423.2,0.3516]
[1755338306937,0.0372,4423.8,4423.2,0.3516]
[1755338307138,3.2078,4424.2,4423.5,0.2564]
[1755338307443,0.0372,4424.1,4423.9,0.608]
[1755338307745,0.0372,4424.1,4423.5,0.45181]
[1755338307943,3.2078,4424.7,4424.5,0.4517]
[1755338308139,0.1,4425.2,4424.6,0.3765]
[1755338308340,0.1,4425.2,4424.0,1.1294]
[1755338308341,0.1,4425.2,4424.9,0.45167]
[1755338308538,0.1,4425.2,4425.1,0.9845]
[1755338308940,0.1,4425.2,4424.8,0.608]
[1755338309144,3.2078,4425.0,4423.4,0.45182]
[1755338309341,3.2078,4424.5,4423.8,0.45177]
[1755338309543,3.2078,4424.5,4423.9,0.70816]
[1755338309747,0.0372,4424.6,4423.9,0.45176]
[1755338309939,0.0372,4424.6,4423.8,0.7281]
[1755338309940,0.0372,4424.6,4423.8,0.45178]
[1755338310140,0.0372,4424.6,4424.3,0.608]
[1755338310350,0.0372,4424.6,4423.9,0.9845]
[1755338310547,3.2078,4425.0,4424.1,0.3765]
[1755338310746,3.245,4425.0,4424.6,0.6329]
[1755338311051,0.0372,4424.9,4423.4,0.7281]
[1755338311347,3.2078,4424.1,4423.5,0.2564]
[1755338311551,3.2078,4424.1,4423.6,40.8]
[1755338311849,0.0372,4423.9,4423.8,0.2564]
[1755338312253,3.2078,4424.1,4423.2,0.45184]
[1755338312444,3.245,4424.1,4423.9,0.3516]
[1755338312644,3.245,4424.1,4424.0,0.2564]
[1755338313050,3.245,4424.1,4423.4,0.9845]
[1755338313345,3.245,4424.1,4423.5,0.2564]
[1755338314244,0.1,4425.2,4424.7,0.45169]
[1755338314451,0.1,4425.2,4425.0,0.7281]
[1755338314643,3.2078,4425.9,4425.1,1.43614]
[1755338314947,3.3076,4425.9,4425.6,0.9845]
[1755338315153,3.3076,4425.9,4425.7,0.3765]
[1755338315452,3.3076,4425.9,4425.8,0.608]
[1755338315649,3.3076,4426.8,4426.2,0.45153]
[1755338315850,3.2078,4426.8,4426.2,0.9845]
[1755338316048,3.2078,4426.8,4425.4,3.2078]
[1755338316049,3.2078,4426.8,4426.5,0.7281]
[1755338316446,3.2078,4426.8,4426.7,0.9845]
[1755338317047,3.2078,4427.3,4427.0,0.45145]
[1755338317449,3.2078,4427.3,4427.2,0.9845]
[1755338317851,3.2078,4428.0,4427.3,0.45142]
[1755338318047,3.2078,4428.0,4427.4,0.608]
[1755338318247,0.27681276,4427.9,4427.7,0.7281]
[1755338318452,3.2078,4428.0,4427.9,0.9845]
[1755338319155,3.2078,4428.5,4427.5,0.608]
[1755338319354,3.2078,4428.5,4427.7,0.45138]
[1755338319549,3.2078,4428.5,4427.8,0.7281]
[1755338319744,3.2078,4428.5,4427.9,0.2564]
[1755338319955,3.3076,4428.5,4427.9,0.2564]
[1755338320145,0.137,4428.4,4428.0,40.8]
[1755338320346,0.137,4428.4,4428.2,0.3516]
[1755338320560,0.137,4428.4,4428.3,0.2564]
[1755338320858,3.2078,4428.5,4428.3,0.9845]
[1755338321151,3.2078,4428.5,4428.4,0.9845]
[1755338321355,3.3076,4428.5,4428.4,0.608]
[1755338321653,3.2078,4428.5,4428.4,0.9845]
[1755338322045,3.3076,4428.5,4428.4,0.9845]
[1755338322250,3.57255407,4428.5,4428.4,0.9845]
[1755338322451,3.47275407,4428.5,4428.4,0.9845]
[1755338322848,3.2078,4428.5,4428.4,0.9845]
[1755338323658,0.0998,4429.0,4428.1,0.45134]
[1755338323659,3.2078,4429.0,4428.1,0.45134]
[1755338323958,3.2078,4429.0,4428.6,0.9845]
[1755338324160,3.2078,4429.0,4428.8,0.2564]
[1755338324354,3.2078,4429.0,4427.9,3.2078]
[1755338324355,28.60286702,4428.9,4423.6,3.2078]
[1755338324556,3.2078,4424.9,4423.1,0.2564]
[1755338324851,3.2078,4424.2,4422.5,0.3765]
[1755338325056,4.2555184,4424.2,4422.9,0.2564]
[1755338325352,4.2555184,4424.2,4422.4,0.2564]
[1755338325557,3.2078,4422.9,4422.4,0.2564]
[1755338325758,3.2078,4422.9,4422.5,34.8845]
[1755338325955,0.45188,4422.8,4422.7,0.9845]
[1755338326748,0.45188,4422.8,4422.7,0.2564]
[1755338326948,0.45188,4422.8,4422.7,0.9845]
[1755338327854,0.45184,4423.2,4422.8,0.9845]
[1755338328155,3.2078,4423.4,4423.1,0.2564]
[1755338328361,0.45183,4423.4,4423.0,3.2078]
[1755338328656,1.12934,4424.3,4422.4,33.9]
[1755338328657,0.45185,4423.1,4422.7,1.0535]
[1755338328959,3.65965,4423.2,4423.1,1.0535]
[1755338329159,3.2078,4423.2,4423.1,1.0535]
[1755338329358,3.2078,4423.7,4423.2,0.4031]
[1755338329561,3.2078,4423.7,4423.4,1.0535]
[1755338329761,3.65957,4424.0,4423.5,1.0535]
[1755338329955,3.2078,4424.5,4423.5,0.4518]
[1755338330148,3.2078,4424.5,4423.7,0.45179]
[1755338330349,3.2078,4424.5,4423.9,1.0535]
[1755338330659,3.2078,4424.5,4423.8,24.692]
[1755338330850,0.45172,4424.4,4424.0,1.0535]
[1755338331054,0.45172,4424.4,4424.2,1.0535]
[1755338331255,3.2078,4424.5,4423.9,24.664]
[1755338331456,3.2078,4424.5,4424.4,0.7638]
[1755338331757,3.2078,4424.5,4424.4,1.50522]
[1755338331958,3.2078,4424.9,4424.4,3.45172]
[1755338332154,3.2078,4424.9,4424.6,0.4517]
[1755338332360,3.2078,4424.9,4424.8,1.0535]
[1755338332557,2.4666,4424.9,4424.8,1.0535]
[1755338332761,0.1,4425.2,4424.9,1.50517]
[1755338333053,0.1,4425.2,4425.1,1.0535]
[1755338333259,3.2078,4425.5,4425.3,1.0535]
[1755338333453,3.65941,4425.5,4425.4,34.9535]
[1755338333656,4.62381,4425.5,4425.4,33.9]
[1755338333853,3.65941,4425.5,4424.8,24.8757]
[1755338334057,3.2078,4425.5,4425.0,0.6504]
[1755338334256,3.2078,4425.5,4425.2,0.74134]
[1755338334562,2.6798,4425.5,4425.3,0.6504]
[1755338334762,2.6798,4425.5,4425.2,0.45164]
[1755338334956,2.6798,4425.5,4425.4,1.0535]
[1755338335152,2.6798,4425.5,4425.4,1.50512]
[1755338335360,2.6798,4425.5,4425.4,4.50512]
[1755338335762,2.6798,4425.5,4425.4,26.07712]
[1755338336458,2.6798,4425.5,4425.4,25.6255]
[1755338338157,1.1299,4422.1,4420.3,3.2078]
[1755338338359,0.2171,4421.2,4420.1,0.2897]
[1755338338559,0.2171,4421.2,4420.8,2.26]
[1755338338863,3.56521616,4420.9,4420.3,0.6504]
[1755338339058,3.2078,4420.4,4420.3,0.6504]
[1755338339259,3.59,4420.4,4419.6,0.6504]
[1755338339463,3.2078,4419.7,4419.6,1.0535]
[1755338340262,3.2078,4420.3,4420.2,0.45215]
[1755338340464,3.2078,4420.3,4420.2,1.0535]
[1755338340669,3.2078,4420.9,4420.3,1.50564]
[1755338340870,3.2078,4420.9,4420.2,31.67423846]
[1755338340871,0.27005876,4420.8,4420.5,0.45212]
[1755338341070,3.2078,4420.9,4420.6,0.6928]
[1755338341374,3.2078,4420.9,4420.8,2.26]
[1755338341868,3.59,4420.9,4420.5,0.4031]
[1755338342067,0.6842,4420.8,4420.3,26.414]
[1755338342368,0.45207,4421.0,4420.3,26.414]
[1755338342369,3.2078,4420.4,4420.3,26.414]
[1755338342563,3.2078,4420.4,4418.3,1.13084]
[1755338342564,0.3798,4420.3,4419.6,0.45221]
[1755338342768,3.2078,4419.8,4419.7,1.0535]
[1755338343170,3.2078,4419.8,4419.7,3.3135]
[1755338343359,3.2078,4421.0,4420.9,1.21587]
[1755338343769,3.2078,4422.2,4398.4,8.843]
[1755338343970,0.3044,4418.7,4416.4,3.5685]
[1755338344162,0.3044,4417.6,4416.5,5.623]
[1755338344366,3.2078,4417.2,4416.9,0.2897]
[1755338344568,3.2078,4417.2,4416.5,6.0261]
[1755338344569,3.5122,4417.2,4416.5,5.623]
[1755338344860,3.5122,4417.2,4416.4,0.3607]
[1755338345372,3.2078,4417.2,4416.5,0.3607]
[1755338345571,3.5122,4417.2,4416.5,0.3607]
[1755338346369,3.2078,4417.2,4417.1,1.15537564]
[1755338347573,0.3044,4418.4,4417.8,0.3607]
[1755338347774,3.2078,4417.9,4417.8,0.3607]
[1755338347962,3.2078,4417.9,4417.3,1.0535]
[1755338348167,3.2078,4417.4,4417.3,1.0535]
[1755338349373,3.2078,4417.4,4417.3,1.50595]
[1755338349773,3.2078,4417.4,4417.3,1.0535]
[1755338349967,3.2078,4417.4,4417.3,33.6295]
[1755338350473,3.2078,4417.9,4417.5,0.3607]
[1755338350666,3.2078,4417.9,4417.3,35.58552965]
[1755338350867,3.2078,4417.9,4417.7,0.45241]
[1755338351072,3.2078,4417.9,4417.8,1.0535]
[1755338352769,3.2078,4417.9,4417.7,0.00871]
[1755338352972,3.2078,4417.9,4376.7,9.66977749]
[1755338352973,3.2078,4415.7,4412.7,0.2897]
[1755338353166,3.2078,4413.2,4413.0,0.6504]
[1755338353367,3.2078,4413.2,4413.1,4.1034]
[1755338353567,3.2078,4413.2,4413.1,28.4444]
[1755338353771,3.2078,4413.2,4413.1,31.4444]
[1755338353968,3.2078,4413.2,4413.1,2.89031505]
[1755338354168,3.2078,4413.2,4413.1,3.54071505]